Cogmind - Beta 17 @@@ ROGUE MODE // 2026.08.02 @ 10:17:16 Player: aperiodic Result: Destroyed by V340-o with Concept XC Strikerail Performance ------------- Evolutions (8) 4000 Regions Visited (24) 4800 Robots Destroyed (352) 1760 Value Destroyed (11557) 11557 Prototype IDs (127) 2540 Alien Tech Used (1) 200 Bonus (6878) 6878 TOTAL SCORE: 31735 Bonus ------- High Alert Combat Kills 178 Follower Combat Kills 2553 Hunted by Unchained 500 Forged Quantum Companion 1000 Network Hubs Disabled 400 Registered with UFD 300 Met Optimus in HQ 500 MAIN.C Attacked Warlord 500 Warlord Defense Kills 2506 Built Enhanced Grunts 300 Friendly Fire -1859 Cogmind --------- Core Integrity 0/1450 Matter 300/300 Energy 18/100 System Corruption 9% Temperature Cool (0) Movement Core (100) Ox1 Location -2/Protoforge Parts ------- > --- POWER (2) -------- (None) > --- PROPULSION (6) --- (None) > --- UTILITY (12) ----- Advanced Signal Interpreter Experimental Armor Integrity Analyzer Graphene Brace System Mapper > --- WEAPON (4) ------- Quantum Companion Kinetic Spear > --- INVENTORY (5) ---- 2N-1CE's Frost Array Nanoactuators Dimensional Node Initializer High-powered Transdimensional Reconstructor Enhanced Gamma Bomb Array Peak State ------------ > --- POWER ------------ Mini Fusion Reactor Micro Antimatter Reactor > --- PROPULSION ------- Cooled Field Propulsion Drive Improved Diametric Drive Improved Diametric Drive Improved Diametric Drive Improved Diametric Drive Cooled Impulse Thruster > --- UTILITY ---------- Medium Storage Unit Experimental Sensor Array Advanced Signal Interpreter Experimental Melee Analysis Suite Experimental Armor Integrity Analyzer Nanoactuators Advanced Transmission Jammer Experimental Reaction Control System Experimental Utility Shielding Advanced Hacking Suite Advanced Hacking Suite System Mapper > --- WEAPON ----------- Vortex Driver Quantum Companion Kinetic Spear > --- INVENTORY -------- 2N-1CE's Frost Array Advanced Gravity Neutralizer Experimental Phase Shifter Experimental Cloaking Device Graphene Brace Dimensional Node Initializer Transdimensional Reconstructor High-powered Transdimensional Reconstructor Enhanced Gamma Bomb Array [Rating: 191] Favorites ----------- Power Micro Antimatter Reactor Engine Improved Ion Engine Power Core Improved Fusion Compressor Reactor Micro Antimatter Reactor Propulsion Armored Huge Wheel Treads Light Treads Leg Enhanced Biometal Leg Wheel Armored Huge Wheel Flight Unit Cooled Field Propulsion Drive Utility Huge Storage Unit Device Seismic Detector Storage Huge Storage Unit Processor Advanced Melee Analysis Suite Hackware System Mapper Protection Hardened Heavy Armor Plating Weapon Companion Sword Energy Gun Heavy EM Shotgun Energy Cannon Cooled Particle Cannon Ballistic Gun Autogun Ballistic Cannon Improved Light Cannon Launcher Rocket Array Special Weapon Junk Cannon Impact Weapon Thunder Hammer Slashing Weapon Companion Sword Piercing Weapon Kinetic Spear Build | -11 -10 -10 -9 -9 -8 -7 -7 -7 -7 -5 -5 -5 -5 -4 -4 -4 -4 -4 -4 -3 -3 -2 -2 -2 ------- Run | Yrd Mat Min Mat Min Mat Fac Sto Rec Scr Fac Upp Upp War Pro Fac Ext Cet Arc Hub Res Tes Res Qua Frg Slots Evolved 16 | . . . 2 . 2 2 . . . 4 . . . . 2 . . . . 2 . 2 . . Power 1 | . . . . . . . . . . 1 . . . . . . . . . . . . . . Propulsion 4 | . . . . . . . . . . 2 . . . . 2 . . . . . . . . . Utility 10 | . . . 1 . 2 2 . . . 1 . . . . . . . . . 2 . 2 . . Weapon 1 | . . . 1 . . . . . . . . . . . . . . . . . . . . . Parts Attached 196 | 7 11 12 22 5 10 9 19 . 5 12 . 3 15 1 14 1 6 . 6 11 7 12 7 1 Power 22 | 1 1 2 2 . . 1 4 . . 1 . . 1 . 2 . 2 . 1 . . 3 1 . Engine 10 | 1 1 1 2 . . 1 3 . . . . . . . 1 . . . . . . . . . Core 5 | . . 1 . . . . 1 . . 1 . . . . 1 . . . 1 . . . . . Reactor 7 | . . . . . . . . . . . . . 1 . . . 2 . . . . 3 1 . Propulsion 38 | 2 6 3 4 . 1 . . . . 1 . . 3 . 4 . . . 2 5 2 . 5 . Treads 5 | . 5 . . . . . . . . . . . . . . . . . . . . . . . Leg 4 | . . . 2 . . . . . . . . . 2 . . . . . . . . . . . Wheel 11 | 2 1 3 2 . 1 . . . . 1 . . . . 1 . . . . . . . . . Hover . | . . . . . . . . . . . . . . . . . . . . . . . . . Flight 18 | . . . . . . . . . . . . . 1 . 3 . . . 2 5 2 . 5 . Utility 80 | 2 1 5 5 3 7 5 6 . 3 9 . 2 2 1 6 . 3 . . 6 4 8 1 1 Device 37 | 1 . 3 1 2 1 3 3 . 3 4 . 1 2 . 2 . 1 . . 3 2 4 . 1 Storage 8 | 1 . 1 2 . . . . . . . . . . 1 1 . 1 . . . 1 . . . Processor 7 | . . . . . 2 . 1 . . 1 . . . . 2 . . . . . . . 1 . Hackware 9 | . . . . . 1 . . . . 1 . . . . 1 . . . . 3 . 3 . . Protection 19 | . 1 1 2 1 3 2 2 . . 3 . 1 . . . . 1 . . . 1 1 . . Artifact . | . . . . . . . . . . . . . . . . . . . . . . . . . Weapon 56 | 2 3 2 11 2 2 3 9 . 2 1 . 1 9 . 2 1 1 . 3 . 1 1 . . Energy Gun 16 | . 1 2 5 . . 1 4 . . . . . 1 . . . 1 . . . 1 . . . Energy Cannon 4 | . . . . . . . 2 . . . . . 2 . . . . . . . . . . . Ballistic Gun 9 | 2 2 . 2 2 . . 1 . . . . . . . . . . . . . . . . . Ballistic Cannon 2 | . . . 1 . . . 1 . . . . . . . . . . . . . . . . . Launcher 8 | . . . 2 . 2 1 . . . 1 . 1 1 . . . . . . . . . . . Special Weapon 9 | . . . 1 . . . . . 1 . . . 5 . 2 . . . . . . . . . Impact Weapon 4 | . . . . . . . 1 . . . . . . . . . . . 3 . . . . . Slashing Weapon 3 | . . . . . . 1 . . 1 . . . . . . 1 . . . . . . . . Piercing Weapon 1 | . . . . . . . . . . . . . . . . . . . . . . 1 . . Special Melee Weapon . | . . . . . . . . . . . . . . . . . . . . . . . . . Unidentified Prototypes 48 | . . . 3 1 1 1 10 . 2 1 . 1 10 . 3 . 5 . 1 1 5 2 . 1 Parts Lost 47 | . 4 8 1 . 4 . 1 . . 2 . 2 . 2 1 1 1 . 2 . . . . 18 Power 5 | . 1 2 . . . . . . . . . . . . . . . . . . . . . 2 Propulsion 11 | . . 3 . . . . . . . . . 1 . . . . . . 1 . . . . 6 Utility 20 | . . 2 . . 3 . 1 . . 2 . 1 . . 1 . . . . . . . . 10 Weapon 11 | . 3 1 1 . 1 . . . . . . . . 2 . 1 1 . 1 . . . . . Highest Loss Streak 16 | . 2 4 1 . 4 . 1 . . 1 . 1 . 1 1 1 1 . 1 . . . . 16 To Critical Strikes . | . . . . . . . . . . . . . . . . . . . . . . . . . Average Backups 14 | 3 7 7 8 19 18 18 19 20 19 18 21 21 21 21 20 10 9 10 10 9 9 9 9 9 Power . | . 1 1 . 1 1 . . 1 1 . . . . . . . . . . . . . . . Propulsion 1 | 1 2 . . 2 2 1 1 1 1 . 1 1 1 3 3 1 1 1 . . . 1 . . Utility 8 | . 1 2 4 9 10 10 11 11 10 9 11 11 10 11 11 6 7 8 8 7 8 6 6 4 Weapon 3 | 1 1 3 3 4 4 5 5 6 5 4 4 4 4 4 2 2 1 1 1 1 . 1 2 1 Tool/Special . | . . . . . . . . . . . . . . . . . . . . . . . . . Unused Backups 36 | . 2 1 5 2 4 1 3 . . . . . 2 . 1 . 1 . . . 5 2 2 5 Power 4 | . 1 1 . 1 . . . . . . . . . . . . . . . . 1 . . . Propulsion 6 | . 1 . . . 3 . . . . . . . . . . . 1 . . . . . 1 . Utility 16 | . . . 4 . . . 3 . . . . . 2 . 1 . . . . . 4 1 . 1 Weapon 6 | . . . 1 1 1 1 . . . . . . . . . . . . . . . 1 . 1 Tool/Special 4 | . . . . . . . . . . . . . . . . . . . . . . . 1 3 Average Slot Usage (%) 84 | . 98 97 99 99 81 84 83 84 75 73 76 71 73 82 74 85 85 81 84 88 89 85 89 83 Engine 4 | . 13 6 11 11 9 7 3 7 7 5 5 5 2 . . 5 . . . . . . . . Core 2 | . . 6 . . . . 3 . . 5 5 5 2 . . 5 5 5 5 4 3 2 . . Reactor 1 | . . . . . . . . . . . . . 2 5 4 . 4 5 5 4 3 5 8 5 Wheel 6 | . 9 26 17 22 9 7 7 7 7 10 11 6 5 5 6 . . . . . . . . . Flight 7 | . . . . . . . . . . . . . . . 1 20 20 20 19 18 22 20 23 23 Device 10 | . 11 7 11 11 14 12 13 10 13 13 11 9 8 9 4 10 5 5 9 8 12 13 15 15 Storage 8 | . 14 14 11 11 9 7 7 7 7 5 5 5 5 6 6 5 9 10 5 4 4 4 4 3 Processor 8 | . . . . . 1 7 7 7 7 7 11 11 11 11 10 15 15 15 15 13 13 12 12 11 Hackware 4 | . . . . . . 7 4 . . 4 5 5 5 5 9 10 5 5 5 11 13 12 12 11 Protection 7 | . 2 5 10 10 9 9 10 19 11 3 5 6 7 5 4 . 4 5 5 4 . 6 4 2 Energy Gun 6 | . 6 12 23 17 1 6 21 15 9 . . . . . 4 4 4 3 4 . . . . . Energy Cannon 1 | . . . . . . . . 7 4 2 4 4 2 4 5 3 . . . . 4 . . . Ballistic Gun 5 | . 20 15 4 15 25 15 . . . . . . . . . . . . . . . . . . Launcher 1 | . . . . . . . . . . . . . 2 2 . 1 5 3 4 . . . . . Slashing Weapon 2 | . . . . . . . . . 2 5 5 5 5 5 5 5 5 5 5 4 4 4 4 4 Peak Build Rating 191 | 7 8 10 26 33 43 46 60 60 70 92 87 87 135 126 137 133 143 138 147 162 173 176 189 191 Average Rating 84 | 5 7 8 21 26 39 44 58 60 61 82 86 79 108 121 125 127 135 133 138 156 160 170 178 171 On Entrance 87 | . 7 8 10 26 28 41 44 60 60 70 87 84 77 124 118 125 128 138 138 146 160 158 173 184 Avg Prop Armor Cover (%) 5 | . . . . . . . . . . . . . 5 5 6 . . 9 6 . . . . . Naked Turns . | . . . . . . . . . . . . . . . . . . . . . . . . . Heaviest Build 180 | 15 16 21 106 108 125 126 134 135 147 155 137 139 180 171 170 45 58 52 56 60 60 53 43 37 Greatest Support 74 | 32 40 40 34 24 28 28 28 28 28 68 56 56 28 28 47 59 63 63 63 63 74 62 52 42 Greatest Overweight (x) 14 | . . 2 4 4 5 4 4 4 5 2 2 4 6 6 6 14 . 2 2 . 2 . . . Average Overweight (x) 1 | . . . 1 4 4 3 4 4 4 1 2 3 4 5 3 . . . . . . . . . Largest Inventory Capacity 25 | 8 8 10 25 25 25 25 25 25 25 25 25 25 25 25 25 10 10 10 10 10 10 10 10 10 Average Capacity 17 | 7 8 9 13 25 25 25 25 25 25 25 25 25 25 25 24 10 10 10 10 10 10 10 10 9 Most Carried 25 | 7 8 10 25 25 25 25 25 25 25 25 25 25 25 25 25 10 10 10 10 10 10 10 10 10 Average Carried 17 | 4 7 8 12 24 24 24 24 25 24 23 25 24 24 24 23 9 9 10 9 9 9 9 9 9 Final Capacity 25 | 8 8 10 25 25 25 25 25 25 25 25 25 25 25 25 10 10 10 10 10 10 10 10 10 5 Final Carried 25 | 7 8 10 25 25 25 24 25 25 25 25 25 25 25 23 10 10 10 10 10 9 10 10 10 5 Scrap Suit Usage (%) 2 | . . . . . . . . . 29 . . . . . . . . . . . . . . . Parts Cannibalized 3 | . . . . . . . . . 3 . . . . . . . . . . . . . . . Class Distribution -------------------- 34% | Tank 19% | Commander-Mutant 16% | Mutant 11% | Hacker-Sprinter 6% | Gunner 3% | Commander-Sprinter Dominant Class ---------------- Mutant | -10/Materials Mutant | -10/Mines Tank | -9/Materials Tank | -9/Mines Tank | -8/Materials Gunner | -7/Factory Tank | -7/Storage Tank | -7/Recycling Tank | -7/Scraptown Mutant | -5/Factory Mutant | -5/Upper Caves Mutant | -5/Upper Caves Commander-Tank | -5/Warlord Tank | -4/Proximity Caves Hacker-Tank | -4/Factory Hacker-Sprinter | -4/Extension Commander-Sprinter | -4/Cetus Commander-Mutant | -4/Archives Commander-Sprinter | -4/Hub_04(d) Hacker-Sprinter | -3/Research Hacker-Sprinter | -3/Testing Hacker-Sprinter | -2/Research Hacker-Sprinter | -2/Quarantine Hacker-Sprinter | -2/Protoforge Resources | -11 -10 -10 -9 -9 -8 -7 -7 -7 -7 -5 -5 -5 -5 -4 -4 -4 -4 -4 -4 -3 -3 -2 -2 -2 ----------- Run | Yrd Mat Min Mat Min Mat Fac Sto Rec Scr Fac Upp Upp War Pro Fac Ext Cet Arc Hub Res Tes Res Qua Frg Matter Collected 6710 | 312 329 210 503 130 1188 163 367 10 60 223 114 208 226 115 235 630 148 . 287 105 313 495 220 119 Remotely . | . . . . . . . . . . . . . . . . . . . . . . . . . Salvage Created 14917 | 163 628 341 1447 141 1583 179 1707 341 . 1471 48 257 574 309 647 761 . 313 889 161 945 1021 683 308 Parts 703 | 11 36 19 90 9 101 10 68 15 . 55 3 16 17 12 20 24 . 24 43 6 37 38 22 27 Haulers Intercepted 25 | . 2 . 6 . 4 . 5 . . 1 . . . . 1 1 . . 1 1 1 1 1 . Recyclers Shooed 8 | . 1 1 1 1 . . . . . 3 . . . . 1 . . . . . . . . . Parts Field Recycled . | . . . . . . . . . . . . . . . . . . . . . . . . . Retrieved Matter . | . . . . . . . . . . . . . . . . . . . . . . . . . Parts Self-Destructed 13 | . . . . . . . . . . . . 11 . 2 . . . . . . . . . . Prevented 18 | . . . . . . . . . . . . 8 . 10 . . . . . . . . . . Parts Restored . | . . . . . . . . . . . . . . . . . . . . . . . . . Kills | -11 -10 -10 -9 -9 -8 -7 -7 -7 -7 -5 -5 -5 -5 -4 -4 -4 -4 -4 -4 -3 -3 -2 -2 -2 ------- Run | Yrd Mat Min Mat Min Mat Fac Sto Rec Scr Fac Upp Upp War Pro Fac Ext Cet Arc Hub Res Tes Res Qua Frg Combat Hostiles Destroyed 198 | . 14 6 20 3 32 4 26 3 . 17 5 6 21 6 4 4 . . 7 3 4 8 2 3 Melee 35 | . . . . . . . . . . 9 . 1 . . 1 3 . . 3 2 3 8 2 3 Guns 91 | . 14 6 13 . 25 4 24 1 . . . . . 1 3 . . . . . . . . . Cannons 9 | . . . 1 . . . . 2 . 3 . . . 2 . . . . . . 1 . . . AOE 56 | . . . 5 3 7 . . . . 4 5 4 21 2 . 1 . . 4 . . . . . Classes Destroyed 20 | 2 5 2 3 . 2 1 . . . 1 . . 4 . . . . . . . . . . . Worker 22 | . . 3 2 . 4 . 3 . . 1 . . . . . 2 . . 4 . . 2 1 . Builder 9 | . . 1 1 . 1 . 1 . . . . . . . . 1 . . 1 . 2 1 . . Tunneler 13 | 4 1 1 . 1 1 . 1 . . . . . . . 1 2 . . . . . 1 . . Hauler 25 | . 2 . 6 . 4 . 5 . . 1 . . . . 1 1 . . 1 1 1 1 1 . Recycler 27 | 1 . . 1 1 1 . 1 3 . 5 . . . . 3 2 . . 1 . 4 2 2 . Mechanic 2 | . . . . . . . . . . 1 . . 1 . . . . . . . . . . . Operator 17 | . 1 . 3 . 1 . . . . . . . . . . . . 9 . . . . . 3 Watcher 27 | . 2 . 5 . 5 . 2 . . . . . . . . 2 . . . . 3 4 3 1 Swarmer 54 | . 6 . 3 . 11 . 2 . . 8 5 4 . . . . . . 4 3 3 5 . . Saboteur 3 | . . . . . . . . . . . . . 3 . . . . . . . . . . . Grunt 65 | . 8 6 9 3 12 . 7 . . 4 . . 7 2 2 2 . . 1 . 1 1 . . Brawler 4 | . . . 1 . 1 . . . . . . . 2 . . . . . . . . . . . Duelist 2 | . . . 1 . . . . . . . . . 1 . . . . . . . . . . . Sentry 34 | . . . 6 . 6 2 12 3 . 1 . 1 . 1 . . . . . . . 2 . . Demolisher 4 | . . . . . . . . . . . . . 3 1 . . . . . . . . . . Specialist 1 | . . . . . . . . . . . . . 1 . . . . . . . . . . . Hunter 8 | . . . . . 1 . . . . . . 1 . 2 1 1 . . . . . . 2 . Programmer 22 | . . . . . . 2 5 . . 4 . . 4 . 1 1 . . 2 . . . . 3 Heavy 1 | . . . . . 1 . . . . . . . . . . . . . . . . . . . Enhanced Grunt 3 | . . . . . . . . . . . . . . . . . . . 3 . . . . . Executioner 1 | . . . . . . . . . . . . . 1 . . . . . . . . . . . Surgeon 1 | . . . . . . . . . . . . . 1 . . . . . . . . . . . Thug 2 | . . . . . . . . . . . . . 1 . . . . . 1 . . . . . Butcher 3 | . . . . . . . . . . . . . 1 . . 1 . . 1 . . . . . Guerrilla 2 | . . . . . . . . . . . . . . . . . . . 2 . . . . . Best Kill Streak 14 | 5 4 3 4 4 10 2 5 3 . 6 5 4 14 2 2 8 . 9 10 3 7 5 4 2 Combat Bots Only 13 | . 4 2 3 3 8 2 4 1 . 5 5 4 13 2 2 1 . . 4 3 3 5 1 2 Max Kills in Single Turn 6 | 1 2 1 3 2 3 1 2 2 . 4 4 2 5 2 1 3 . 1 6 1 1 1 1 1 Gunslinging 1 | . 1 . . . 1 . . . . . . . . . . . . . . . . . . . Exploded 5 | . . . 3 2 3 . . . . 4 4 2 5 1 . 1 . . 4 . . . . . Melee 1 | . . . . . . . . . . 1 . 1 . . 1 1 . . 1 1 1 1 1 1 Uniques/NPCs Destroyed . | . . . . . . . . . . . . . . . . . . . . . . . . . Combat | -11 -10 -10 -9 -9 -8 -7 -7 -7 -7 -5 -5 -5 -5 -4 -4 -4 -4 -4 -4 -3 -3 -2 -2 -2 -------- Run | Yrd Mat Min Mat Min Mat Fac Sto Rec Scr Fac Upp Upp War Pro Fac Ext Cet Arc Hub Res Tes Res Qua Frg Hostile Shots Fired 1152 | . 80 53 68 4 109 39 264 36 . 62 6 28 9 54 37 44 . 1 10 39 28 40 23 118 Missed 425 | . 16 13 21 3 33 15 102 20 . 12 2 7 2 22 12 28 . . 3 15 15 25 18 41 Deflected 1 | . . . . . . . . . . . . . . . . . . . . . . . . 1 Hits 727 | . 64 40 47 1 76 24 162 16 . 50 4 21 7 32 25 16 . 1 7 24 13 15 5 77 Projectile 727 | . 64 40 47 1 76 24 162 16 . 50 4 21 7 32 25 16 . 1 7 24 13 15 5 77 AOE 38 | . . 14 . . . . . . . . . . 5 7 . . . . . . . . . 12 Critical Strikes 23 | . . 1 . . 7 1 . . . 2 . . 3 2 1 . . . . 1 . 1 . 4 Actively Blocked 5 | . . . . . . . . . . . . . . . . . . . . . . 1 . 4 Part Disruptions 1 | . . . . . . . . . . . . . . . . . . . 1 . . . . . Damage Taken 12315 | . 758 863 649 12 1306 285 1136 113 . 711 52 212 339 621 409 316 68 29 500 416 302 398 161 2659 Core 2584 | . 95 124 100 . 222 27 90 17 . 75 . 6 . 99 34 30 . . 78 38 70 152 32 1295 Absorbed by Shields 1124 | . . . . . 22 . 329 10 . 215 20 81 166 257 . 9 15 . . . . . . . Redirected to Shielding 262 | . . . . . . . . . . . . . . . . . . . . . . 103 38 121 Ignored by Resistances 162 | . . . . . . . 21 . . 17 . 58 . . 66 . . . . . . . . . Regen/Repaired (Parts) 931 | . . . . . . . 11 . 30 . . . 31 . . . . 29 53 143 332 125 177 . Core Remaining (%) 73 | 100 . 12 . 75 59 . . . 80 . . . . 82 . . . . 87 . 91 . . . Volleys Fired 519 | 7 74 53 73 7 78 10 93 9 . 22 2 11 12 29 14 10 1 . 3 . 4 . 2 5 Largest 3 | 2 2 2 3 3 3 3 3 3 . 1 1 1 1 1 2 1 1 . 1 . 1 . 1 1 Hottest 180 | 40 70 85 156 74 123 126 170 180 . 90 45 39 20 90 60 60 30 . 100 . 100 . 100 100 Shots Fired 1047 | 14 137 92 162 13 214 30 237 27 . 23 2 14 12 29 15 10 1 . 4 . 4 . 2 5 Gun 909 | 14 137 92 139 10 209 30 235 18 . . . . . 9 13 3 . . . . . . . . Cannon 65 | . . . 14 . . . 2 9 . 9 . 8 . 8 . . 1 . 3 . 4 . 2 5 Launcher 48 | . . . 4 3 5 . . . . 1 2 6 10 10 . 6 . . 1 . . . . . Special 25 | . . . 5 . . . . . . 13 . . 2 2 2 1 . . . . . . . . Kinetic 435 | 14 99 61 43 10 182 20 6 . . . . . . . . . . . . . . . . . Thermal 390 | . 38 31 27 . . 10 231 27 . 9 . 8 . 8 . . 1 . . . . . . . Explosive 26 | . . . 4 3 5 . . . . 1 2 . 2 2 . 6 . . 1 . . . . . Electromagnetic 131 | . . . 88 . 27 . . . . . . 6 . 10 . . . . . . . . . . Impact 13 | . . . . . . . . . . 13 . . . . . . . . . . . . . . Entropic 49 | . . . . . . . . . . . . . 10 9 13 3 . . 3 . 4 . 2 5 Robot Hit Streak 30 | 8 21 12 7 8 22 18 30 16 . 9 1 5 9 12 6 12 . . 2 . . . . . Robot Miss Streak 10 | 2 3 6 5 4 8 2 10 3 . 2 3 1 2 3 4 6 3 . 1 . . . . . Penetration Max . | . . . . . . . . . . . . . . . . . . . . . . . . . Secondary Targets 8 | . 2 . . . 6 . . . . . . . . . . . . . . . . . . . Max Gunslinging Chain 1 | . 1 . . . 1 . . . . . . . . . . . . . . . . . . . Autonomous 5 | . . . . . . . . . . . . . . . . . . . . . 2 . . 3 Shots Hit Robots 920 | 10 104 64 99 7 156 22 169 21 . 61 1 7 9 22 21 21 . 15 10 12 17 33 19 20 Core Hits 697 | 6 38 30 61 14 121 13 113 26 . 29 7 10 38 22 17 35 . 4 74 3 9 14 9 4 Critical Kills 2 | . . 1 . . 1 . . . . . . . . . . . . . . . . . . . Critical Parts Destroyed 7 | . . . . . 1 . . . . 2 . . . . 2 . . . . 2 . . . . Critical Strikes 28 | . 1 5 1 . 2 . 3 . . 4 . . 1 1 2 . . . 2 2 . . . 4 Burn 8 | . 1 4 . . . . 3 . . . . . . . . . . . . . . . . . Destroy 3 | . . 1 . . 2 . . . . . . . . . . . . . . . . . . . Blast 1 | . . . 1 . . . . . . . . . . . . . . . . . . . . . Smash 4 | . . . . . . . . . . 2 . . . . . . . . . 2 . . . . Sever 2 | . . . . . . . . . . . . . 1 1 . . . . . . . . . . Detonate 2 | . . . . . . . . . . . . . . . 2 . . . . . . . . . Melee Attacks 361 | . . . . . . 2 1 . . 64 . 8 4 . 15 15 . 15 32 28 45 61 36 35 Impact 9 | . . . . . . . . . . . . . . . . . . . . 6 3 . . . Slashing 352 | . . . . . . 2 1 . . 64 . 8 4 . 15 15 . 15 32 22 42 61 36 35 Piercing . | . . . . . . . . . . . . . . . . . . . . . . . . . Sneak Attacks 61 | . . . . . . . . . . 9 . . . . 6 2 . 12 . 1 9 13 5 4 Combat Hostiles 7 | . . . . . . . . . . 3 . . . . . . . . . . . 2 . 2 Follow-up Attacks 8 | . . . . . . . . . . 1 . . . . . . . . . 5 1 1 . . Damage Inflicted 44599 | 130 1170 625 2257 322 3156 473 3819 650 . 3566 431 366 7954 1678 1625 2171 . 1486 3427 562 1891 3147 1759 1934 Guns 12198 | 130 1170 625 1567 104 2598 473 3819 489 . . . . . 461 654 108 . . . . . . . . Cannons 1083 | . . . 126 . . . . 161 . 191 . . . 160 . . . . . . 182 . . 263 Explosions 15832 | . . . 564 218 558 . . . . 274 431 247 7853 971 330 1382 . . 3004 . . . . . Melee 14464 | . . . . . . . . . . 2266 . 119 . . 641 681 . 1486 423 562 1709 3147 1759 1671 Ramming . | . . . . . . . . . . . . . . . . . . . . . . . . . Kinetic 4093 | 130 797 362 320 104 2139 210 31 . . . . . . . . . . . . . . . . . Thermal 6479 | . 373 263 336 . 62 263 3788 650 . 191 . 63 . 160 330 . . . . . . . . . Explosive 5263 | . . . 343 218 496 . . . . 274 431 . 496 541 . 1382 . . 1082 . . . . . Electromagnetic 4253 | . . . 1258 . 459 . . . . . . 184 . 430 . . . . 1922 . . . . . Impact 1086 | . . . . . . . . . . 835 . . . . . . . . . 251 . . . . Slashing 14400 | . . . . . . . . . . 2266 . 119 101 86 641 681 . 1486 423 311 1709 3147 1759 1671 Piercing . | . . . . . . . . . . . . . . . . . . . . . . . . . Entropic 8580 | . . . . . . . . . . . . . 7357 461 654 108 . . . . . . . . Phasic 445 | . . . . . . . . . . . . . . . . . . . . . 182 . . 263 Highest Corruption 9 | . . . . . 5 2 . . . 4 4 4 4 . . . . . 3 . . . . 9 Average Corruption 4 | . . . . . 5 1 . . . 3 4 4 4 . . . . . 2 . . . . 5 Corruption Purged 2 | . . . . . . 2 . . . . . . . . . . . . . . . . . . Corruption Blocked . | . . . . . . . . . . . . . . . . . . . . . . . . . Effects 91 | . . . . . 28 3 . . . 15 6 23 4 . . . . . 5 . . . . 7 Message Errors 21 | . . . . . 7 . . . . 6 1 4 . . . . . . 3 . . . . . Matter Fused 28 | . . . . . 10 1 . . . 3 3 6 3 . . . . . 1 . . . . 1 Heat Flow Errors 9 | . . . . . 4 1 . . . . 1 2 . . . . . . . . . . . 1 Energy Discharges 12 | . . . . . 3 1 . . . 1 1 3 1 . . . . . . . . . . 2 Data Loss (minor) 8 | . . . . . 2 . . . . 3 . 3 . . . . . . . . . . . . Data Loss (major) 2 | . . . . . 1 . . . . . . 1 . . . . . . . . . . . . Misfires 6 | . . . . . 1 . . . . 1 . 3 . . . . . . 1 . . . . . Alerts 5 | . . . . . . . . . . 1 . 1 . . . . . . . . . . . 3 Overload Shots 4 | . . . . . . . . . . 2 . . . 2 . . . . . . . . . . Overflow Damage 4400 | . . . 10 . . . . 1 . 769 11 . 421 6 132 4 . 635 94 134 573 768 285 557 Projectiles 549 | . . . . . . . . 1 . 503 . . . . . . . . . . . . . 45 Explosions 556 | . . . 10 . . . . . . . 11 . 421 6 13 4 . . 91 . . . . . Melee 3295 | . . . . . . . . . . 266 . . . . 119 . . 635 3 134 573 768 285 512 Knockbacks 3 | . . . . . . . . . . 3 . . . . . . . . . . . . . . Impact 3 | . . . . . . . . . . 3 . . . . . . . . . . . . . . Kinetic . | . . . . . . . . . . . . . . . . . . . . . . . . . Secondary . | . . . . . . . . . . . . . . . . . . . . . . . . . Self-Inflicted Damage 616 | . . . 37 . . . . . . . 14 . 156 36 . 22 . . 351 . . . . . Shots 15 | . . . 1 . . . . . . . 1 . 1 3 . 1 . . 8 . . . . . Rammed 1 | . . . . . . . . . . . . . . . . . . . 1 . . . . . Targets Rammed 1 | . . . . . . . . . . . . . . . . . . . 1 . . . . . Kicked . | . . . . . . . . . . . . . . . . . . . . . . . . . Crushed . | . . . . . . . . . . . . . . . . . . . . . . . . . Highest Temperature 416 | . 140 284 288 36 416 142 200 224 . 48 91 267 . 222 144 61 48 . 222 8 112 70 1 218 Average Temperature 68 | . 42 95 77 19 115 28 52 79 . 26 53 101 . 83 64 16 22 . 91 6 44 12 1 142 Received Heat Transfer 2004 | . 333 225 282 6 435 36 271 32 . 128 . 12 9 7 63 42 . . 9 21 21 27 9 36 Effects 11 | . . 1 . . 9 . . . . . . . . 1 . . . . . . . . . . Shutdowns 2 | . . . . . 2 . . . . . . . . . . . . . . . . . . . Energy Bleed 3 | . . 1 . . 2 . . . . . . . . . . . . . . . . . . . Interference 4 | . . . . . 3 . . . . . . . . 1 . . . . . . . . . . Matter Decay 1 | . . . . . 1 . . . . . . . . . . . . . . . . . . . Damage (minor) 1 | . . . . . 1 . . . . . . . . . . . . . . . . . . . Siege Activations . | . . . . . . . . . . . . . . . . . . . . . . . . . Martial Activations . | . . . . . . . . . . . . . . . . . . . . . . . . . Shielding Activations . | . . . . . . . . . . . . . . . . . . . . . . . . . Robots Disrupted 2 | . . . . . . . . . . 1 . . . . 1 . . . . . . . . . Combat Hostiles 1 | . . . . . . . . . . . . . . . 1 . . . . . . . . . Robots Corrupted 10 | . . . 1 . . . . . . 2 . 1 . 1 . . . . 3 2 . . . . Combat Hostiles 5 | . . . 1 . . . . . . 1 . 1 . 1 . . . . . 1 . . . . Parts Fried 17 | . . . 7 . 2 . . . . . . 3 . 2 . . . . 1 2 . . . . Impact Corruptions 14 | . . . . . . . . . . 9 . . . . . . . . . 5 . . . . Robots Melted 2 | . . . . . . . 2 . . . . . . . . . . . . . . . . . Combat Hostiles 2 | . . . . . . . 2 . . . . . . . . . . . . . . . . . Parts Melted 40 | . 3 1 . . 1 . 34 1 . . . . . . . . . . . . . . . . Heat Transferred 12091 | . 1184 1036 533 . 100 550 7311 642 . 211 . 100 . 174 250 . . . . . . . . . Parts Sabotaged . | . . . . . . . . . . . . . . . . . . . . . . . . . Parts Stolen . | . . . . . . . . . . . . . . . . . . . . . . . . . Parts Stripped . | . . . . . . . . . . . . . . . . . . . . . . . . . Power Chain Reactions 11 | . . . 5 . 2 . . . . . . 1 . . . . . . 3 . . . . . Alert | -11 -10 -10 -9 -9 -8 -7 -7 -7 -7 -5 -5 -5 -5 -4 -4 -4 -4 -4 -4 -3 -3 -2 -2 -2 ------- Run | Yrd Mat Min Mat Min Mat Fac Sto Rec Scr Fac Upp Upp War Pro Fac Ext Cet Arc Hub Res Tes Res Qua Frg Maximum Alert Level 4 | . . . 1 . 2 1 2 . . 1 . . . . . 2 1 1 4 3 2 . . . Low Security (%) 83 | 100 100 100 72 100 72 78 64 100 . 99 . . . . 100 69 . 97 96 . 32 100 100 100 Level 1 10 | . . . 27 . 6 21 22 . . . . . . . . 16 100 2 . . 59 . . . Level 2 5 | . . . . . 21 . 13 . . . . . . . . 14 . . . 21 7 . . . Level 3 . | . . . . . . . . . . . . . . . . . . . . 78 . . . . Level 4 . | . . . . . . . . . . . . . . . . . . . 3 . . . . . Level 5 . | . . . . . . . . . . . . . . . . . . . . . . . . . High Security . | . . . . . . . . . . . . . . . . . . . . . . . . . Max Security . | . . . . . . . . . . . . . . . . . . . . . . . . . Peak Influence 1304 | 15 92 45 365 139 681 309 502 189 . 200 . . . . 86 607 388 261 1304 996 560 182 97 37 Initial 680 | . . 11 . 139 . 309 7 189 . . . . . . 2 12 328 99 . 680 560 123 95 2 Average 98 | 3 26 7 156 29 137 122 168 55 . 84 . . . . 28 173 321 13 143 809 254 58 27 6 Influence Increases 10970 | 25 410 190 910 95 978 121 958 91 . 578 110 140 728 195 264 1253 190 282 1650 506 379 492 196 229 Destroy 0b10 Robot/C 4900 | . 280 120 400 60 640 80 520 60 . 340 100 120 540 160 100 480 80 80 260 100 80 200 40 60 Destroy 0b10 Robot/NC 730 | 25 30 25 90 10 85 . 65 15 . 40 . . 5 . 25 60 5 45 40 5 50 60 35 15 Destroy Leader 1024 | . 78 30 142 10 178 40 194 . . 62 10 20 . 20 22 54 . . 54 22 18 50 8 12 Allied During Kill 1204 | . . . . . . . . . . 1 . . 183 15 5 475 85 125 302 . . 13 . . Successful Hack 276 | . 6 . 13 . 4 . 37 14 . 18 . . . . 16 20 . . 4 7 25 22 56 34 Disable Machine 840 | . . . 135 . . . 60 . . 30 . . . . 15 15 . 30 465 15 45 . 15 15 Destroy Structure 1066 | . 1 . 55 15 56 1 7 2 . 42 . . . . 66 74 20 2 480 72 56 57 27 33 Partial Spotted 255 | . . . 15 . . . . . . . . . . . . 45 . . 15 45 45 60 15 15 Lose Combat Pursuer 675 | . 15 15 60 . 15 . 75 . . 45 . . . . 15 30 . . 30 240 60 30 . 45 Influence Decreases 10970 | 25 380 220 553 452 297 784 490 577 . 454 187 187 48 871 241 693 529 530 354 806 1156 541 362 233 Entered New Map 3304 | . . 19 . 218 . 372 11 297 . . 47 10 . 680 2 15 259 149 . 616 436 96 75 2 Time Decay 6385 | 25 350 161 553 234 247 412 469 280 . 274 140 167 48 178 209 475 160 321 274 140 410 405 280 173 Lost Part 253 | . 30 40 . . 40 . 10 . . 20 . 10 . . 10 5 10 . 20 . . . . 58 Lost Ally 728 | . . . . . 10 . . . . 160 . . . 13 20 198 100 60 60 50 10 40 7 . Purge Threat 300 | . . . . . . . . . . . . . . . . . . . . . 300 . . . Squads Dispatched 57 | . 3 . 1 1 3 2 10 . . 9 . . . . 5 3 . . 5 1 4 4 4 2 Investigation 15 | . 1 . . 1 . . 1 . . 6 . . . . 3 1 . . . . . 1 1 . Extermination 22 | . . . . . . 2 5 . . 2 . . . . 1 . . . 1 . 4 2 3 2 Reinforcement 16 | . 2 . 1 . 3 . 1 . . 1 . . . . 1 2 . . 4 . . 1 . . Assault 1 | . . . . . . . . . . . . . . . . . . . . 1 . . . . Garrison 3 | . . . . . . . 3 . . . . . . . . . . . . . . . . . Intercept . | . . . . . . . . . . . . . . . . . . . . . . . . . Searches Triggered . | . . . . . . . . . . . . . . . . . . . . . . . . . Construction Impeded 4 | . . . . . 1 . . . . . . . . . 1 1 . . 1 . . . . . Haulers Reinforced 3 | . . . . . . . 1 . . 1 . . . . . . . . 1 . . . . . Active Scanning Responses . | . . . . . . . . . . . . . . . . . . . . . . . . . Cargo Convoy Interrupts . | . . . . . . . . . . . . . . . . . . . . . . . . . Stealth | -11 -10 -10 -9 -9 -8 -7 -7 -7 -7 -5 -5 -5 -5 -4 -4 -4 -4 -4 -4 -3 -3 -2 -2 -2 --------- Run | Yrd Mat Min Mat Min Mat Fac Sto Rec Scr Fac Upp Upp War Pro Fac Ext Cet Arc Hub Res Tes Res Qua Frg Distress Signals 38 | . . . . . 5 1 . . . 3 . . . 22 . 1 1 . 3 1 . 1 . . Communications Jammed . | . . . . . . . . . . . . . . . . . . . . . . . . . Distress Signals . | . . . . . . . . . . . . . . . . . . . . . . . . . Times Spotted 390 | . 23 8 32 5 46 5 44 2 . 44 5 6 28 8 7 22 4 8 12 28 13 13 9 18 Peak Tracking Total 13 | . 3 2 3 3 7 3 5 1 . 7 5 4 9 4 2 3 4 1 5 13 5 7 2 11 Tactical Retreats 26 | . 1 1 3 . 1 . 3 . . 2 . . . . 1 1 . . 1 6 2 2 . 2 Traps | -11 -10 -10 -9 -9 -8 -7 -7 -7 -7 -5 -5 -5 -5 -4 -4 -4 -4 -4 -4 -3 -3 -2 -2 -2 ------- Run | Yrd Mat Min Mat Min Mat Fac Sto Rec Scr Fac Upp Upp War Pro Fac Ext Cet Arc Hub Res Tes Res Qua Frg Traps Triggered 8 | . 1 . . . . . 1 . . . . . . . . 3 . . 1 . . 1 . 1 Indirectly . | . . . . . . . . . . . . . . . . . . . . . . . . . Trap Hack Attempts . | . . . . . . . . . . . . . . . . . . . . . . . . . Triggered . | . . . . . . . . . . . . . . . . . . . . . . . . . Disarmed . | . . . . . . . . . . . . . . . . . . . . . . . . . Reprogrammed . | . . . . . . . . . . . . . . . . . . . . . . . . . Reused . | . . . . . . . . . . . . . . . . . . . . . . . . . Traps Extracted . | . . . . . . . . . . . . . . . . . . . . . . . . . Installed 1 | . . . . . . . 1 . . . . . . . . . . . . . . . . . Triggered . | . . . . . . . . . . . . . . . . . . . . . . . . . Most Traps Carried 4 | . . 4 4 4 4 4 4 3 4 4 1 1 1 . . . . . . . . . . . Machines | -11 -10 -10 -9 -9 -8 -7 -7 -7 -7 -5 -5 -5 -5 -4 -4 -4 -4 -4 -4 -3 -3 -2 -2 -2 ---------- Run | Yrd Mat Min Mat Min Mat Fac Sto Rec Scr Fac Upp Upp War Pro Fac Ext Cet Arc Hub Res Tes Res Qua Frg Machines Disabled 59 | . . . 9 . . . 4 . . 2 . . 1 . 1 1 . 2 31 1 3 . 2 2 Max in Single Turn 18 | . . . 4 . . . 1 . . 1 . . 1 . 1 1 . . 18 . 1 . 1 1 Garrison Access 5 | . . . . . . . . . . 1 . . . . . . . . 1 . 1 . 1 1 Network Hub 2 | . . . . . . . . . . . . . . . . . . . 2 . . . . . Machines Repaired . | . . . . . . . . . . . . . . . . . . . . . . . . . Machines Dismantled 1 | . . . . . . . . . . . . . 1 . . . . . . . . . . . Machines Sabotaged . | . . . . . . . . . . . . . . . . . . . . . . . . . Overloaded Fab Kills . | . . . . . . . . . . . . . . . . . . . . . . . . . Hacking | -11 -10 -10 -9 -9 -8 -7 -7 -7 -7 -5 -5 -5 -5 -4 -4 -4 -4 -4 -4 -3 -3 -2 -2 -2 --------- Run | Yrd Mat Min Mat Min Mat Fac Sto Rec Scr Fac Upp Upp War Pro Fac Ext Cet Arc Hub Res Tes Res Qua Frg Machines Accessed 104 | . 1 1 7 1 6 . 7 1 4 12 . . 2 . 5 10 . . 4 1 12 8 15 7 Terminals 64 | . 1 . 6 . 5 . 4 1 . 4 . . . . 1 9 . . 3 1 8 5 10 6 Fabricators 1 | . . . . . . . . . . . . . . . . . . . . . . 1 . . Repair Stations 6 | . . . . . . . 2 . . 1 . . . . 1 . . . . . 1 . 1 . Recycling Units 10 | . . . . . . . . . . 6 . . . . 2 1 . . . . . 1 . . Scanalyzers 9 | . . . 1 . 1 . . . . . . . . . 1 . . . . . 2 1 3 . Garrison Access 6 | . . . . . . . 1 . . 1 . . . . . . . . 1 . 1 . 1 1 Total Hacks 285 | . 2 1 11 1 11 . 15 1 9 24 . . 6 . 20 15 . . 5 11 58 34 47 14 Successful 196 | . 1 1 9 1 9 . 8 1 9 12 . . 6 . 8 9 . . 3 7 43 27 33 9 Failed 86 | . 1 . 2 . 2 . 6 . . 12 . . . . 11 6 . . 2 3 15 7 14 5 Catastrophic 14 | . 1 . 1 . 1 . . . . 3 . . . . 1 1 . . . . 2 3 . 1 Database Lockouts 3 | . . . . . . . 1 . . . . . . . 1 . . . . 1 . . . . Manual 124 | . 2 . 9 . 9 . 4 . . 19 . . . . 9 4 1 . 3 8 18 17 13 8 Terminals 172 | . 2 . 10 . 10 . 6 1 . 10 . . . . 5 14 . . 4 11 32 18 36 13 Fabricators 7 | . . . . . . . . . . . . . . . . . . . . . . 7 . . Repair Stations 29 | . . . . . . . 7 . . 2 . . . . 4 . . . . . 12 . 4 . Recycling Units 17 | . . . . . . . . . . 11 . . . . 4 1 . . . . . 1 . . Scanalyzers 36 | . . . 1 . 1 . . . . . . . . . 7 . . . . . 13 8 6 . Garrison Access 7 | . . . . . . . 2 . . 1 . . . . . . . . 1 . 1 . 1 1 Terminal Hacks 85 | . . 1 2 1 1 . 4 1 9 2 . . 6 . 1 8 . . 1 5 14 9 16 4 Record 7 | . . . . . . . . . 7 . . . . . . . . . . . . . . . Part Schematic 8 | . . . . . . . . 1 . . . . . . . . . . . 1 3 2 1 . Robot Analysis 4 | . . . 1 . . . . . . . . . . . . . . . . . . . 3 . Prototype ID Bank 8 | . . . . . . . 1 . . . . . 5 . . . . . . . 1 . 1 . Open Door 15 | . . 1 . 1 . . 3 . 1 . . . 1 . . 7 . . . . . 1 . . Branch Access Points 4 | . . . 1 . . . . . . 1 . . . . 1 . . . . . . 1 . . Machine Index 1 | . . . . . . . . . . . . . . . . . . . . . . . 1 . Terminal Index 1 | . . . . . . . . . . . . . . . . . . . . . . 1 . . Fabricator Index 1 | . . . . . . . . . . . . . . . . . . . . . . 1 . . Alert Level 4 | . . . . . 1 . . . . . . . . . . . . . . . 1 . 2 . Unreport Threat 2 | . . . . . . . . . . . . . . . . . . . . . 2 . . . Locate Traps 6 | . . . . . . . . . . . . . . . . 1 . . . 1 2 . 2 . Recall Investigation 1 | . . . . . . . . . . . . . . . . . . . . . . . 1 . Recall Extermination 7 | . . . . . . . . . . . . . . . . . . . . . 3 1 3 . Recall Reinforcements 1 | . . . . . . . . . . 1 . . . . . . . . . . . . . . Hauler Manifests 5 | . . . . . . . . . . . . . . . . . . . 1 1 1 1 1 . Registered Components 1 | . . . . . . . . . . . . . . . . . . . . 1 . . . . Registered Prototypes 1 | . . . . . . . . . . . . . . . . . . . . 1 . . . . Zone Layout 6 | . . . . . . . . . . . . . . . . . . . . . 1 1 1 3 Proto ID Catalog 2 | . . . . . . . . . 1 . . . . . . . . . . . . . . 1 Fabricator Hacks 6 | . . . . . . . . . . . . . . . . . . . . . . 6 . . Load Schematic 3 | . . . . . . . . . . . . . . . . . . . . . . 3 . . Build 3 | . . . . . . . . . . . . . . . . . . . . . . 3 . . Repair Station Hacks 22 | . . . . . . . 4 . . 1 . . . . 1 . . . . . 12 . 4 . Scan Component 13 | . . . . . . . 3 . . 1 . . . . 1 . . . . . 6 . 2 . Repair 9 | . . . . . . . 1 . . . . . . . . . . . . . 6 . 2 . Recycling Unit Hacks . | . . . . . . . . . . . . . . . . . . . . . . . . . Scanalyzer 30 | . . . 1 . 1 . . . . . . . . . 3 . . . . . 11 8 6 . Insert Component 15 | . . . . . . . . . . . . . . . 1 . . . . . 7 3 4 . Analyze 9 | . . . . . . . . . . . . . . . . . . . . . 4 3 2 . Retrieve Study 6 | . . . 1 . 1 . . . . . . . . . 2 . . . . . . 2 . . Garrison Access Hacks 5 | . . . . . . . . . . 1 . . . . . . . . 1 . 1 . 1 1 Seal Access 5 | . . . . . . . . . . 1 . . . . . . . . 1 . 1 . 1 1 Unauthorized Hacks 48 | . 1 . 6 . 7 . . . . 8 . . . . 3 1 . . 1 2 5 4 6 4 Terminals 39 | . 1 . 6 . 7 . . . . 4 . . . . 1 . . . 1 2 5 2 6 4 Track 5 | . . . . . . . . . . . . . . . . . . . 1 . . . 1 3 Assimilate 13 | . 1 . 1 . 1 . . . . . . . . . . . . . . 1 3 1 4 1 Botnet 8 | . . . . . 1 . . . . 1 . . . . 1 . . . . 1 2 1 1 . Skim 13 | . . . 5 . 5 . . . . 3 . . . . . . . . . . . . . . Fabricators 1 | . . . . . . . . . . . . . . . . . . . . . . 1 . . Liberate 1 | . . . . . . . . . . . . . . . . . . . . . . 1 . . Repair Stations . | . . . . . . . . . . . . . . . . . . . . . . . . . Recycling Units 8 | . . . . . . . . . . 4 . . . . 2 1 . . . . . 1 . . Fedlink 8 | . . . . . . . . . . 4 . . . . 2 1 . . . . . 1 . . Scanalyzers . | . . . . . . . . . . . . . . . . . . . . . . . . . Garrison Access . | . . . . . . . . . . . . . . . . . . . . . . . . . Data Cores Recovered 4 | . . . 2 . 1 . . . . . . . . . . . . . . . . . . 1 Used 3 | . . . 2 . . . . . . . . . . . . . . . . . . . . 1 Hacking Detections 57 | . . . 4 . 4 . 4 1 . 6 . . . . 4 5 . . 3 . 7 4 10 5 Full Trace Events 4 | . . . . . . . 1 . . 2 . . . . 1 . . . . . . . . . Feedback Events . | . . . . . . . . . . . . . . . . . . . . . . . . . Feedback Blocked . | . . . . . . . . . . . . . . . . . . . . . . . . . Robot Schematics Acquired . | . . . . . . . . . . . . . . . . . . . . . . . . . Robots Built . | . . . . . . . . . . . . . . . . . . . . . . . . . Authchips . | . . . . . . . . . . . . . . . . . . . . . . . . . Time . | . . . . . . . . . . . . . . . . . . . . . . . . . Total Robot Build Rating . | . . . . . . . . . . . . . . . . . . . . . . . . . Part Schematics Acquired 14 | . . . . . . . . 1 . . . . . . . . . . . 1 7 3 2 . Parts Built 4 | . . . . . . . . . . . . . . . . . . . . . . 4 . . Authchips 3 | . . . . . . . . . . . . . . . . . . . . . . 3 . . Time 163 | . . . . . . . . . . . . . . . . . . . . . . 163 . . Total Part Build Rating 28 | . . . . . . . . . . . . . . . . . . . . . . 28 . . Part Studies Acquired 6 | . . . 1 . 1 . . . . . . . . . 2 . . . . . . 2 . . Parts Repaired 9 | . . . . . . . 1 . . . . . . . . . . . . . 6 . 2 . Time 358 | . . . . . . . 68 . . . . . . . . . . . . . 201 . 89 . Parts Recycled . | . . . . . . . . . . . . . . . . . . . . . . . . . Recycled Matter . | . . . . . . . . . . . . . . . . . . . . . . . . . Retrieved Matter . | . . . . . . . . . . . . . . . . . . . . . . . . . Retrieved Components . | . . . . . . . . . . . . . . . . . . . . . . . . . Parts Scanalyzed 7 | . . . . . . . . . . . . . . . 1 . . . . . 4 1 1 . Part Schematics Acquired 6 | . . . . . . . . . . . . . . . . . . . . . 4 1 1 . Parts Damaged . | . . . . . . . . . . . . . . . . . . . . . . . . . Bothacking | -11 -10 -10 -9 -9 -8 -7 -7 -7 -7 -5 -5 -5 -5 -4 -4 -4 -4 -4 -4 -3 -3 -2 -2 -2 ------------ Run | Yrd Mat Min Mat Min Mat Fac Sto Rec Scr Fac Upp Upp War Pro Fac Ext Cet Arc Hub Res Tes Res Qua Frg Used RIF Installer . | . . . . . . . . . . . . . . . . . . . . . . . . . Robots Hacked . | . . . . . . . . . . . . . . . . . . . . . . . . . Non-combat . | . . . . . . . . . . . . . . . . . . . . . . . . . Combat . | . . . . . . . . . . . . . . . . . . . . . . . . . Robot Hacks Applied . | . . . . . . . . . . . . . . . . . . . . . . . . . Relay Couplers Released . | . . . . . . . . . . . . . . . . . . . . . . . . . Fabnet Peak Effective % . | . . . . . . . . . . . . . . . . . . . . . . . . . Robots Rewired 26 | . . . . . . . . . . 1 . . 5 . 1 19 . . . . . . . . Allies Hacked . | . . . . . . . . . . . . . . . . . . . . . . . . . Hacks Repelled . | . . . . . . . . . . . . . . . . . . . . . . . . . Allies | -11 -10 -10 -9 -9 -8 -7 -7 -7 -7 -5 -5 -5 -5 -4 -4 -4 -4 -4 -4 -3 -3 -2 -2 -2 -------- Run | Yrd Mat Min Mat Min Mat Fac Sto Rec Scr Fac Upp Upp War Pro Fac Ext Cet Arc Hub Res Tes Res Qua Frg Total Allies 55 | . . . 1 . 1 . . . . 1 . . 5 . 1 31 5 . . 1 2 3 3 1 Largest Group 19 | . . . 1 1 1 1 1 1 1 1 . . 5 2 1 19 19 19 16 4 2 4 3 1 Highest-Rated Group 1085 | . . . 10 10 10 10 10 10 10 11 . . 249 105 49 955 1085 1085 959 270 71 209 116 45 Highest-Rated Ally 159 | . . . 10 10 10 10 10 10 10 11 . . 64 64 49 159 152 96 96 96 45 69 45 45 Initial UFD Resources 91 | . . . . . . . . . . 38 56 56 56 60 60 74 76 76 76 79 79 81 91 91 Total Orders 111 | . . . 18 2 19 4 10 2 . 4 . . 5 . . . 2 11 12 3 2 7 10 . STAY 56 | . . . 9 1 10 2 5 1 . 3 . . 2 . . . 1 2 7 2 1 4 6 . ROAM 1 | . . . . . . . . . . . . . . . . . . 1 . . . . . . FOLLOW 54 | . . . 9 1 9 2 5 1 . 1 . . 3 . . . 1 8 5 1 1 3 4 . Ally Attacks 364 | . . . . . . . . . . . . . 36 11 5 179 40 26 41 12 . 14 . . Total Damage 10451 | . . . . . . . . . . . . . 1506 441 193 4531 962 646 999 628 . 545 . . Kills 58 | . . . . . . . . . . . . . 7 2 1 23 5 4 9 4 . 3 . . Allies Corrupted 3 | . . . . . . . . . . . . . 1 . . . . . 2 . . . . . Allies Melted 1 | . . . . . . . . . . . . . . . . . . . 1 . . . . . Intel | -11 -10 -10 -9 -9 -8 -7 -7 -7 -7 -5 -5 -5 -5 -4 -4 -4 -4 -4 -4 -3 -3 -2 -2 -2 ------- Run | Yrd Mat Min Mat Min Mat Fac Sto Rec Scr Fac Upp Upp War Pro Fac Ext Cet Arc Hub Res Tes Res Qua Frg Active Infowar (turns) 18437 | 39 1196 170 3015 809 3938 676 122 . . 490 278 578 1244 647 90 1310 12 . 551 160 904 913 729 566 Sensors 8317 | . . . . 2 . . . . . 490 278 578 1244 630 90 1290 6 . 551 160 901 872 715 510 Structural 175 | . . 1 174 . . . . . . . . . . . . . . . . . . . . . Seismic 9963 | 39 1196 169 3014 809 3938 676 122 . . . . . . . . . . . . . . . . . Cloaking 431 | . . . . . . . . . . . . . 2 17 . 20 6 . . . 110 141 14 121 Jamming 1391 | . . . . . . . . . . . . . . . . . . . . . . 355 560 476 Robot Analysis Total 3 | . . . 1 . . . . . . . . . . . . . . . . . . . 2 . Derelict Logs Recovered 5 | . . 1 . 2 . . . . . . 1 1 . . . . . . . . . . . . Drone Launches 16 | . . . . . . . . . . 16 . . . . . . . . . . . . . . Drone Recoveries . | . . . . . . . . . . . . . . . . . . . . . . . . . Exploration | -11 -10 -10 -9 -9 -8 -7 -7 -7 -7 -5 -5 -5 -5 -4 -4 -4 -4 -4 -4 -3 -3 -2 -2 -2 ------------- Run | Yrd Mat Min Mat Min Mat Fac Sto Rec Scr Fac Upp Upp War Pro Fac Ext Cet Arc Hub Res Tes Res Qua Frg Turns Passed 37080 | 113 1505 803 3018 1008 5057 1040 2307 910 2987 1243 281 997 1244 791 679 1368 320 7103 642 286 980 990 767 641 Spaces Moved 22306 | 67 638 704 2217 671 1013 604 1141 530 1824 730 199 605 617 407 372 1167 173 523 714 486 1643 1810 2620 831 Core 131 | 1 . 6 . . . . . . . . . . . . . 1 . 81 40 . 2 . . . Treads 434 | . 429 5 . . . . . . . . . . . . . . . . . . . . . . Legs 400 | . . . 400 . . . . . . . . . . . . . . . . . . . . . Wheels 11441 | 66 209 693 1817 671 1013 604 1141 530 1824 730 199 605 617 407 315 . . . . . . . . . Hover . | . . . . . . . . . . . . . . . . . . . . . . . . . Flight 9900 | . . . . . . . . . . . . . . . 57 1166 173 442 674 486 1641 1810 2620 831 Fastest Speed 16 | 50 100 80 80 140 140 145 160 160 160 115 130 130 160 175 29 29 29 29 29 29 16 25 17 17 Average Speed 91 | 99 140 86 115 140 158 159 160 160 162 129 130 149 174 176 145 29 29 47 36 31 27 25 18 17 Slowest Speed 750 | 100 160 160 200 140 160 160 160 160 175 130 130 160 190 190 190 750 29 150 150 32 150 25 27 27 Overloaded Moves 75 | . . . . . . . . . . . . . . . . . . . . . 27 . 48 . Propulsion Burnouts . | . . . . . . . . . . . . . . . . . . . . . . . . . Robots Hopped 175 | . . . . . . . . . . . . . . . . 10 . . 8 20 43 28 60 6 Potential Cave-ins 6 | . . . . . . . . . . . . . . . . . . . . . . . . 6 Cave-ins Triggered 1 | . . . . . . . . . . . . . . . . . . . . . . . . 1 Exploration Rate (%) 60 | 4 88 92 81 84 60 11 94 98 85 34 47 73 72 58 8 86 48 98 43 16 88 25 96 22 Regions Visited 24 Branch Regions 16 Pre-discovered Areas 5 | . . . . 2 1 . 1 . . 1 . . . . . . . . . . . . . . Known Exits Taken 14 | . . . 1 1 . 1 . 1 . 1 . . . . 1 1 1 1 1 1 1 1 1 . Unknown Exits Taken 10 | 1 1 1 . . 1 . 1 . 1 . 1 1 1 1 . . . . . . . . . . Scrap Searched 17 | . . 3 . 2 . . . . 3 . 2 4 . 3 . . . . . . . . . . Spaces Dug 108 | . . . 5 . . 1 2 . . 6 . 3 4 . 5 . . . 4 15 26 19 7 11 Terrain Destroyed 870 | . . . 60 20 59 1 4 2 . 21 74 11 150 35 38 30 . . 278 15 28 19 9 16 Melee 87 | . . . . . . 1 1 . . 5 . 3 4 . 5 . . . 2 15 20 19 5 7 Projectile 50 | . . . 6 . . . 3 2 . 4 . 2 . . 10 . . . 2 . 8 . 4 9 AOE 733 | . . . 54 20 59 . . . . 12 74 6 146 35 23 30 . . 274 . . . . . Terrain Rammed . | . . . . . . . . . . . . . . . . . . . . . . . . . Walls Destroyed . | . . . . . . . . . . . . . . . . . . . . . . . . . Machines Disabled . | . . . . . . . . . . . . . . . . . . . . . . . . . Actions | -11 -10 -10 -9 -9 -8 -7 -7 -7 -7 -5 -5 -5 -5 -4 -4 -4 -4 -4 -4 -3 -3 -2 -2 -2 --------- Run | Yrd Mat Min Mat Min Mat Fac Sto Rec Scr Fac Upp Upp War Pro Fac Ext Cet Arc Hub Res Tes Res Qua Frg Total 37509 | 96 1118 816 2546 731 4324 663 1427 571 1850 910 215 670 750 445 475 2137 443 7354 1035 566 2062 2246 2791 1268 Wait 13517 | 9 381 20 168 34 3189 16 127 32 . 37 11 29 37 3 33 799 244 6813 274 40 359 340 150 372 Move 21947 | 66 637 703 2216 670 1012 603 1140 529 1823 729 198 604 616 406 371 1147 172 522 698 452 1559 1755 2501 818 Hop 159 | . . . . . . . . . . . . . . . . 9 . . 7 13 40 26 58 6 Pick Up 157 | 7 6 13 28 6 11 7 8 . 8 9 . 1 4 . 4 1 5 . . 6 10 9 10 4 Fast Attach 118 | 7 2 4 11 . 3 4 16 . 3 5 . 5 12 . 5 1 6 2 5 4 13 7 2 1 Attach 92 | . 2 8 6 1 5 4 1 . 3 12 . 1 3 2 11 1 4 . 1 7 1 9 5 5 Detach 34 | . . 1 3 . . 1 2 . 1 6 . . 5 . 1 . 1 . 1 2 1 4 2 3 Swap 184 | . 10 5 15 7 16 5 12 1 . 4 4 7 2 5 5 8 . . 6 10 13 26 15 8 Drop 208 | . 6 9 26 6 10 11 22 . 12 9 . 4 12 . 15 1 10 2 2 10 18 10 10 3 Fire 519 | 7 74 53 73 7 78 10 93 9 . 22 2 11 12 29 14 10 1 . 3 . 4 . 2 5 Melee 352 | . . . . . . 2 1 . . 63 . 8 4 . 15 15 . 15 32 22 44 60 36 35 Ram 1 | . . . . . . . . . . . . . . . . . . . 1 . . . . . Kick . | . . . . . . . . . . . . . . . . . . . . . . . . . Crush . | . . . . . . . . . . . . . . . . . . . . . . . . . Escape Stasis 62 | . . . . . . . 4 . . . . . . . . 45 . . 5 . . . . 8 Rewire 149 | . . . . . . . . . . 14 . . 34 . 1 100 . . . . . . . . Trap 1 | . . . . . . . 1 . . . . . . . . . . . . . . . . . Miscellaneous 9 | . . . . . . . . . . . . . 9 . . . . . . . . . . . Route ------- -11/Scrapyard -10/Materials (discovered 4 exits: *Mat x2 / *Min x2) -10/Mines (discovered 2 exits: *Mat x2) -9/Materials (discovered 4 exits: *Mat x3 / *Min) -9/Mines (discovered 2 exits: *Mat x2) -8/Materials -7/Factory (discovered 5 exits: Fac x3 / *Sto x2) -7/Storage (discovered 2 exits: *Fac / *Rec) -7/Recycling (discovered 2 exits: *Fac / *Scr) -7/Scraptown (discovered 2 exits: *Fac x2) -5/Factory (discovered 3 exits: *Fac / *Upp x2) -5/Upper Caves -5/Upper Caves (discovered 2 exits: *Fac / *War) -5/Warlord -4/Proximity Caves -4/Factory (discovered 5 exits: Upp x2 / *Ext x2 / Arm) -4/Extension (discovered 2 exits: *Res / *Cet) -4/Cetus -4/Archives (discovered 3 exits: *Res / *Hub x2) -4/Hub_04(d) (discovered 2 exits: *Res x2) -3/Research -3/Testing -2/Research (discovered 2 exits: *Qua x2) -2/Quarantine (discovered 3 exits: *Acc / *Sec / *Frg) -2/Protoforge (discovered 1 exit: *Acc) History --------- Turn | Location | Event 13 | -11/Scrapyard | Discovered new exit (range 15) 114 | -11/Scrapyard | Entered Materials 305 | -10/Materials | Build established: Mutant 668 | -10/Materials | Discovered new exit (range 10) 799 | -10/Materials | Discovered new exit (range 9) 844 | -10/Materials | Discovered new exit (range 5) 1244 | -10/Materials | Discovered new exit (range 16) 1619 | -10/Materials | Entered Mines 1622 | -10/Mines | YI-UF0 nonchalantly dropped a Grenade Launcher on the ground 1637 | -10/Mines | Core integrity fell below 50% 1677 | -10/Mines | Lost 4 parts (1p2n1u) 1867 | -10/Mines | Discovered new exit (range 9) 2038 | -10/Mines | Core integrity fell below 20% 2059 | -10/Mines | Discovered new exit (range 4) 2084 | -10/Mines | Lost 4 parts (1p1n1u1w) 2149 | -10/Mines | Learned Materials garrison access intel 2166 | -10/Mines | Found a hidden stash of uninstalled traps 2308 | -10/Mines | Found the Drone Emporium 2317 | -10/Mines | Found Prototype Device 2413 | -10/Mines | Build established: Scavenger-Mutant 2422 | -10/Mines | Entered Materials 2422 | -9/Materials | Evolved 2 slots: Utility x1, Weapon x1 2423 | -9/Materials | Identified Decoy Drone Bay 2719 | -9/Materials | Discovered new exit (range 15) 3025 | -9/Materials | Build established: Tank 3408 | -9/Materials | Build established: Scavenger-Tank 3757 | -9/Materials | Discovered new exit (range 13) 3827 | -9/Materials | Build established: Tank 3899 | -9/Materials | Identified exit to Mines 4257 | -9/Materials | Learned Storage security intel 4296 | -9/Materials | Identified exit to Materials 4352 | -9/Materials | Learned Storage security intel 4353 | -9/Materials | Learned Storage security intel 4365 | -9/Materials | Learned location of 1 exit from Recycling 4386 | -9/Materials | Learned Storage trap positions 5440 | -9/Materials | Entered Mines 5440 | -9/Mines | Accompanied by 1 ally 5441 | -9/Mines | Learned location of Storage (-7) 5639 | -9/Mines | Learned location of Zion (-6) 5758 | -9/Mines | Deemed a non-threat by the Exiles lab entrance 5898 | -9/Mines | Learned Materials terminal intel 5963 | -9/Mines | Found a damaged Exp. Sensor Array with a note attached 5968 | -9/Mines | Found Prototype Device 5969 | -9/Mines | Identified Exp. Sensor Array 6186 | -9/Mines | Met a Derelict shopkeep closing up shop 6448 | -9/Mines | Entered Materials 6448 | -8/Materials | Accompanied by 1 ally 6448 | -8/Materials | Evolved 2 slots: Utility x2 6449 | -8/Materials | Loaded intel: 12 terminal locations 6450 | -8/Materials | Loaded intel: 1 garrison access location 6556 | -8/Materials | Lost 4 parts (3u1w) 10125 | -8/Materials | Destroyed 8 combat bots 10716 | -8/Materials | Build established: Gunner 11025 | -8/Materials | Discovered new exit (range 13) 11284 | -8/Materials | Learned location of 2 exits from Factory 11318 | -8/Materials | Learned Recycling recycling unit intel 11351 | -8/Materials | Learned Factory stockpile data 11354 | -8/Materials | Learned 2 Lower Caves zone layouts 11355 | -8/Materials | Learned Storage stockpile data 11362 | -8/Materials | Learned location of 3 exits from Factory 11379 | -8/Materials | Learned Factory emergency access door positions 11505 | -8/Materials | Entered Factory 11505 | -7/Factory | Accompanied by 1 ally 11505 | -7/Factory | Evolved 2 slots: Utility x2 11506 | -7/Factory | Identified exit to Factory 11506 | -7/Factory | Identified exit to Storage 11704 | -7/Factory | Found Prototype Launcher 11704 | -7/Factory | Identified Rocket Array 11708 | -7/Factory | Found Rocket Array 12148 | -7/Factory | Build established: Tank 12499 | -7/Factory | Build established: Gunner 12545 | -7/Factory | Entered Storage 12545 | -7/Storage | Accompanied by 1 ally 12546 | -7/Storage | Loaded intel: 16 trap records 12661 | -7/Storage | Met 01-MTF 12674 | -7/Storage | Repaired Broken Exp. Sensor Array? 12967 | -7/Storage | Build established: Tank 13606 | -7/Storage | Central database locked down 13948 | -7/Storage | Garrison activated, responded to threat 14419 | -7/Storage | Used back door to open Recycling access 14419 | -7/Storage | Discovered new exit (range 5) 14650 | -7/Storage | Discovered exit to Factory (range 6) 14715 | -7/Storage | Learned location of Armory (-4) 14852 | -7/Storage | Entered Recycling 14852 | -7/Recycling | Accompanied by 1 ally 14853 | -7/Recycling | Met a Zionite searching for Scraptown 14853 | -7/Recycling | Identified exit to Scraptown 14854 | -7/Recycling | Loaded intel: 6 recycling unit locations 15649 | -7/Recycling | Discovered new exit (range 16) 15718 | -7/Recycling | Scanned before Scraplab entrance 15744 | -7/Recycling | Entered Scraplab 15762 | -7/Recycling | Entered Scraptown 15762 | -7/Scraptown | Accompanied by 1 ally 15873 | -7/Scraptown | Heard Great Nut preacher, LISTEN AND RECITE! 15938 | -7/Scraptown | Visited UFD Registry 15938 | -7/Scraptown | Registered with UFD as "Bulletchassis" 15950 | -7/Scraptown | Visited Red Mages 15967 | -7/Scraptown | Visited Junk Repository 16071 | -7/Scraptown | Visited Shadow of the Wyrm 16102 | -7/Scraptown | Visited Cyclists 16113 | -7/Scraptown | Entered Cyclist Reading Room 16169 | -7/Scraptown | Visited Comm Corps 16351 | -7/Scraptown | Discovered new exit (range 13) 16550 | -7/Scraptown | Visited Curators Association 16590 | -7/Scraptown | Visited Supply Room 16642 | -7/Scraptown | Visited Derelict Rescue Squad 16666 | -7/Scraptown | Visited Junk Cannon Lab 16682 | -7/Scraptown | Visited Sword Containment 16704 | -7/Scraptown | Visited Research Penetration Think Tank 16738 | -7/Scraptown | Visited Science Guys 16989 | -7/Scraptown | Visited Scrap Suit Storage 17319 | -7/Scraptown | Found Scrap Suit 17485 | -7/Scraptown | Visited TADAMA 17587 | -7/Scraptown | Build established: Gunner 17757 | -7/Scraptown | Found Prototype Slashing Weapon 17757 | -7/Scraptown | Identified Companion Sword 17794 | -7/Scraptown | Found Prototype Special Weapon 17811 | -7/Scraptown | Identified Junk Cannon 17841 | -7/Scraptown | Found DRS Beacon 17984 | -7/Scraptown | Build established: Mutant 18658 | -7/Scraptown | Met Optimus 18658 | -7/Scraptown | Accepted into 0bPrime 18738 | -7/Scraptown | Discovered new exit (range 5) 18749 | -7/Scraptown | Entered Factory 18749 | -5/Factory | Accompanied by 1 ally 18749 | -5/Factory | Evolved 4 slots: Power x1, Propulsion x2, Utility x1 18760 | -5/Factory | Identified exit to Upper Caves 19026 | -5/Factory | Discovered new exit (range 11) 19416 | -5/Factory | Lost 8 allies 19617 | -5/Factory | Loaded intel: 8 recycling unit locations 19719 | -5/Factory | Learned location of Protoforge (-2) 19992 | -5/Factory | Entered Upper Caves 20163 | -5/Upper Caves | Learned Factory terminal intel 20258 | -5/Upper Caves | Discovered new exit (range 9) 20273 | -5/Upper Caves | Entered another Upper Caves area 20344 | -5/Upper Caves | Discovered new exit (range 11) 20669 | -5/Upper Caves | Encountered a Warlord checkpoint 20952 | -5/Upper Caves | Attracted the attention of an 0b10 checkpoint 21006 | -5/Upper Caves | Learned Factory garrison access intel 21201 | -5/Upper Caves | Found Alien Artifact 21201 | -5/Upper Caves | Identified Core Expander 21201 | -5/Upper Caves | Installed Core Expander, added new Weapon slot 21259 | -5/Upper Caves | Discovered new exit (range 8) 21270 | -5/Upper Caves | Entered Warlord 21357 | -5/Warlord | Discovered new exit (range 8) 21419 | -5/Warlord | System corruption cleaned by Quarantine Array 21708 | -5/Warlord | Found Prototype Special Weapon 21708 | -5/Warlord | Identified RU-N14's Throwing Claymores v3 21711 | -5/Warlord | Found RU-N14's Throwing Claymores v3 21812 | -5/Warlord | Found Prototype Reactor 21812 | -5/Warlord | Identified Vortex Chain Reactor 21820 | -5/Warlord | Found Prototype Device 21820 | -5/Warlord | Identified Exp. Cloaking Device 21846 | -5/Warlord | Found Prototype Hackware 21851 | -5/Warlord | Found Prototype Processor 21923 | -5/Warlord | Visited the Vortex Lab 21929 | -5/Warlord | Found Prototype Energy Gun 21929 | -5/Warlord | Identified Vortex Shotgun 21931 | -5/Warlord | Warlord's base attacked by MAIN.C 21938 | -5/Warlord | Found Prototype Energy Cannon 21938 | -5/Warlord | Identified Vortex Cannon 21942 | -5/Warlord | Found Prototype Energy Cannon 21942 | -5/Warlord | Identified Vortex Driver 21949 | -5/Warlord | Found Prototype Launcher 21949 | -5/Warlord | Identified Vortex Catalyst Activator 22008 | -5/Warlord | Build established: Commander-Tank 22281 | -5/Warlord | Warlord forces counterattacked 22339 | -5/Warlord | Spotted Executioner 22349 | -5/Warlord | Allies destroyed Executioner 22373 | -5/Warlord | Lost 4 allies 22391 | -5/Warlord | Spotted Executioner 22395 | -5/Warlord | Destroyed Executioner 22421 | -5/Warlord | Lost 3 allies 22439 | -5/Warlord | Spotted Striker 22449 | -5/Warlord | Spotted Striker 22449 | -5/Warlord | Spotted Striker 22453 | -5/Warlord | Allies destroyed Striker 22463 | -5/Warlord | Murdered 4 allies 22487 | -5/Warlord | Lost 5 allies 22492 | -5/Warlord | Destroyed 13 combat bots 22514 | -5/Warlord | Entered Proximity Caves 22514 | -4/Proximity Caves | Accompanied by 2 allies 22665 | -4/Proximity Caves | Attracted the attention of an 0b10 checkpoint 23014 | -4/Proximity Caves | Build established: Tank 23296 | -4/Proximity Caves | Discovered new exit (range 6) 23305 | -4/Proximity Caves | Entered Factory 23305 | -4/Factory | Evolved 2 slots: Propulsion x2 23306 | -4/Factory | Loaded intel: 28 terminal locations 23307 | -4/Factory | Loaded intel: 4 garrison access locations 23311 | -4/Factory | Identified System Mapper 23364 | -4/Factory | Central database locked down 23490 | -4/Factory | Identified exit to Upper Caves 23490 | -4/Factory | Identified exit to Extension 23490 | -4/Factory | Identified exit to Armory 23717 | -4/Factory | Loaded intel: 8 recycling unit locations 23949 | -4/Factory | Identified Exp. Armor Integrity Analyzer 23984 | -4/Factory | Entered Extension 24066 | -4/Extension | Rescued a captive Derelict 24066 | -4/Extension | Rescued a captive Derelict 24349 | -4/Extension | Rescued a captive Derelict 24362 | -4/Extension | Rescued a captive Derelict 24367 | -4/Extension | Rescued a captive Derelict 24428 | -4/Extension | Rescued A7 24481 | -4/Extension | Attached CPS modules to A7 24498 | -4/Extension | Loaded intel: 1 recycling unit location 24612 | -4/Extension | Build established: Hacker-Sprinter 24958 | -4/Extension | Spotted B-86 Titan 24972 | -4/Extension | Allies destroyed B-86 Titan 24974 | -4/Extension | Spotted B-86 Titan 25000 | -4/Extension | Allies destroyed B-86 Titan 25022 | -4/Extension | Lost 4 allies 25091 | -4/Extension | Rescued a captive Derelict 25093 | -4/Extension | Rescued a captive Derelict 25172 | -4/Extension | Rescued a captive Derelict 25172 | -4/Extension | Rescued a captive Derelict 25180 | -4/Extension | Lost 4 allies 25214 | -4/Extension | Rescued a captive Derelict 25215 | -4/Extension | Rescued a captive Derelict 25269 | -4/Extension | Discovered new exit (range 10) 25269 | -4/Extension | Discovered new exit (range 6) 25351 | -4/Extension | Identified exit to Cetus 25352 | -4/Extension | Entered Cetus 25352 | -4/Cetus | Accompanied by 19 allies (A7) 25357 | -4/Cetus | Acquired a Cetus Manufacturing Module code from A7 25361 | -4/Cetus | Spotted Cetus Guard 25361 | -4/Cetus | Spotted Cetus Guard 25369 | -4/Cetus | Spotted Cetus Guard 25369 | -4/Cetus | Spotted Cetus Guard 25379 | -4/Cetus | Allies destroyed Cetus Guard 25392 | -4/Cetus | Extracted ID and sensor layout for unrecognized location from A7's data core 25398 | -4/Cetus | Found Prototype Protection 25398 | -4/Cetus | Identified Med. Regenerative Plating 25407 | -4/Cetus | Lost 5 allies 25460 | -4/Cetus | Started Cetus Manufacturing Module 25485 | -4/Cetus | Manufactured an Enhanced Grunt 25500 | -4/Cetus | Discovered new exit (range 15) 25510 | -4/Cetus | Manufactured an Enhanced Grunt 25535 | -4/Cetus | Manufactured an Enhanced Grunt 25560 | -4/Cetus | Manufactured an Enhanced Grunt 25585 | -4/Cetus | Manufactured an Enhanced Grunt 25603 | -4/Cetus | Identified exit to Archives 25656 | -4/Cetus | Build established: Commander-Sprinter 25672 | -4/Cetus | Entered Archives 25672 | -4/Archives | Accompanied by 19 allies 25746 | -4/Archives | Discovered new exit (range 16) 25757 | -4/Archives | Discovered new exit (range 14) 25767 | -4/Archives | Lost 3 allies 25770 | -4/Archives | Discovered new exit (range 15) 25835 | -4/Archives | Identified exit to Hub_04(d) 26245 | -4/Archives | Build established: Commander-Mutant 32775 | -4/Archives | Entered Hub_04(d) 32775 | -4/Hub_04(d) | Accompanied by 16 allies 32775 | -4/Hub_04(d) | Discovered new exit (range 10) 32790 | -4/Hub_04(d) | Identified exit to Research 32911 | -4/Hub_04(d) | Lost 5 allies 33094 | -4/Hub_04(d) | Discovered exit to Research (range 7) 33186 | -4/Hub_04(d) | Build established: Commander-Sprinter 33345 | -4/Hub_04(d) | Murdered 3 allies 33393 | -4/Hub_04(d) | Network Hub disabled 33397 | -4/Hub_04(d) | Network Hub disabled 33417 | -4/Hub_04(d) | Entered Research 33417 | -3/Research | Accompanied by 4 allies 33417 | -3/Research | Evolved 2 slots: Utility x2 33430 | -3/Research | Lost 3 allies 33459 | -3/Research | Central database locked down 33540 | -3/Research | Spotted B-86 Titan 33667 | -3/Research | First assault squad dispatched 33700 | -3/Research | Discovered new exit (range 4) 33703 | -3/Research | Identified exit to Testing 33703 | -3/Research | Entered Testing 33762 | -3/Testing | Found Prototype Energy Gun 33762 | -3/Testing | Identified Hyp. EM Gauss Rifle 33785 | -3/Testing | Build established: Hacker-Sprinter 33850 | -3/Testing | Found Prototype Device 33874 | -3/Testing | Watched by a mysterious "MATRIX" hacker 33874 | -3/Testing | Identified Exp. Thermal Shield 33875 | -3/Testing | Repaired Adv. Reaction Control System? 34012 | -3/Testing | Repaired Mic. Antimatter Reactor 34042 | -3/Testing | Repaired Mic. Fission Core 34090 | -3/Testing | Found Prototype Device 34090 | -3/Testing | Identified 2N-1CE's Frost Array 34171 | -3/Testing | Forged Quantum Companion 34328 | -3/Testing | Found Prototype Launcher 34342 | -3/Testing | Identified Tesla Bomb Launcher 34352 | -3/Testing | Discovered new exit (range 9) 34353 | -3/Testing | Spotted PY-CRMDBAH8MF 34354 | -3/Testing | Identified exit to Research 34399 | -3/Testing | Found Prototype Device 34399 | -3/Testing | Identified Exp. Thermal Defense Suite 34502 | -3/Testing | Repaired Mic. Fission Core 34535 | -3/Testing | Repaired Nanoactuators 34585 | -3/Testing | Repaired Cld. Field Propulsion Drive 34683 | -3/Testing | Entered Research 34683 | -2/Research | Accompanied by 1 ally 34683 | -2/Research | Evolved 2 slots: Utility x2 34704 | -2/Research | Identified exit to Quarantine 34739 | -2/Research | Fabricated Exp. Utility Shielding (x1) 34781 | -2/Research | Fabricated Adv. Transmission Jammer (x2) 35042 | -2/Research | Fabricated Exp. Phase Shifter (x1) 35191 | -2/Research | Found Prototype Launcher 35193 | -2/Research | Identified Enh. Gamma Bomb Array 35528 | -2/Research | Loaded intel: 3 recycling unit locations 35673 | -2/Research | Entered Quarantine 35725 | -2/Quarantine | Repaired Exp. Utility Shielding? 35745 | -2/Quarantine | Targeted by mysterious "MATRIX" hacker 35794 | -2/Quarantine | Repaired Diametric Drive? 35994 | -2/Quarantine | Discovered new exit (range 13) 36124 | -2/Quarantine | Found Prototype Processor 36265 | -2/Quarantine | Identified Exp. Melee Analysis Suite 36340 | -2/Quarantine | Found Alien Artifact 36341 | -2/Quarantine | Found Alien Artifact 36343 | -2/Quarantine | Found Alien Artifact 36362 | -2/Quarantine | Identified Transdimensional Reconstructor 36362 | -2/Quarantine | Identified Dimensional Node Initializer (x2) 36371 | -2/Quarantine | Found Alien Artifact 36427 | -2/Quarantine | Spotted Fortress 36439 | -2/Quarantine | Discovered new exit (range 6) 36439 | -2/Quarantine | Discovered new exit (range 7) 36440 | -2/Quarantine | Identified exit to Section 7 36440 | -2/Quarantine | Identified exit to Protoforge 36440 | -2/Quarantine | Entered Protoforge 36536 | -2/Protoforge | Discovered new exit (range 13) 36556 | -2/Protoforge | Identified exit to Access 36673 | -2/Protoforge | Spotted Overlord 36814 | -2/Protoforge | Crushed by falling debris 37001 | -2/Protoforge | Spotted V340-o 37001 | -2/Protoforge | Superfortress began startup sequence 37026 | -2/Protoforge | Core integrity fell below 50% 37035 | -2/Protoforge | Found Prototype Device 37035 | -2/Protoforge | Identified Crosscalibrator 37042 | -2/Protoforge | Spotted Decapitator 37042 | -2/Protoforge | Spotted Decapitator 37042 | -2/Protoforge | Spotted Decapitator 37042 | -2/Protoforge | Spotted Decapitator 37043 | -2/Protoforge | Spotted Immortal 37073 | -2/Protoforge | Core integrity fell below 20% 37081 | -2/Protoforge | Destroyed by V340-o with Concept XC Strikerail Last Messages --------------- 37052_ Field strength at 28. The surroundings shift and blur. 37055_ Research Cell breached. 37056_ Field strength at 9. 37057_ System corrupted: IFF burst signal emitted. 37057_ Stasis field depleted. 37065_ Machine disabled. 37071_ V340-o Prototype Protection severed. 37072_ Penetrated by Slug. 37072_ Imp. Diametric Drive destroyed. 37072_ Adv. Hacking Suite destroyed. 37072_ P-80 Master destroyed. 37075_ Penetrated by Slug. 37075_ Slug penetrates Reinforced Barrier. 37075_ Penetrated by Slug. 37075_ Imp. Diametric Drive destroyed. 37075_ Slug penetrates Reinforced Barrier. 37078_ Penetrated by Slug. 37078_ Slug penetrates Reinforced Barrier. Map ----- +----------------------------------------------------+ | ????????????????????????????????# #???????? | | ????????????????????????????????# #???????? | | ????????????????????????????????# #???????? | | ????????????????????????????????# #???????? | | ????????????????????????????????# #???????? | | ?????????????????????####???????# #???????? | | ?????????????????????# ######### ######### | | ?????????????????????# | | ?????????????????????# | | ?????????????????????# | | ??????????????######?# #################### | | ??????????????#"""""##^ #???????????????# | | ??????????????#"====## #?????#?????????# | | ??????????????#"== =## #####"#?????????# | | ??????????????#"=== " ""#?????????#" | | ??????????????#" ===" "#?????????#" | | ??????????????#"= =" "#?????????#" | | ??????????????#" ==" "#?????????#" " | | ??????????????#" ==" ""#?????????#""" | | ??????????????#"====" """"#?????????#### | | ??????????????#"== = """"#????????????? | | ??????????????#"====# ""#????????????? | | ??????????????#"====# "#????????????? | | ??????????????#"""""# "#????????????? | | ??????????????#######lc "#????????????? | | ??????????????????#@V " " "#????????????? | | ??????????????????# p"""""""""#????????????? | | ??????????????????#############????????????? | | ???????????????????????????????????????????? | | ???????????????????????????????????????????? | | ???????????????????????????????????????????? | | ???????????????????????????????????????????? | | ???????????????????????????????????????????? | | ????????????????????????????????????????#### | | ????????????????????????????????????????# | | ????????????????????????????????????????# | | ????????????????????????????????????????# | | ????????????????????????????????????????# | | ????????????????????????????????????????# | | ????????????????????????????????????????# | | ????????????????????????????????????????# | | ????????????????????????????????????????# | | ????????????????????????????????????????# | | ????????????????????????????????????????# | | ????????????????????????????????????????# | | ????????????????????????????????????????# | | ???????#########????????????????????????# | | ???????#"""T"""#???????????????###??????# | | ???#####""" """######????#########??????# | | ???# % #??### ##??????# | +----------------------------------------------------+ Best States ------------- Heat Dissipation 149 Energy Generation 55 Energy Capacity 1050 Matter Stores 300 Matter Capacity 300 Sight Range 16 Robot Scan Range 20 Terrain Scan Density 10 Jamming Range 16 Cloak Strength 4 Additional Mass Support 16 EM Shielding 2 Armor Coverage 900 Resistance: KI 25 Resistance: TH 30 Resistance: EM 15 Utility Shielding 90 Melee Speed Boost 30 Phase Shifting 20 Evasion (%) 100 Targeting Accuracy 8 Melee Accuracy 12 Armor Integrity Analysis 50 Recoil Reduction 2 Offensive Hacking 48 Defensive Hacking 14 Authchip Count 4 Item Schematics ----------------- EM Shield | -7/Recycling | Hacked Exp. Utility Shielding | -3/Research | Hacked Cld. Q-thruster | -3/Testing | Hacked Exp. Coolant Injector | -3/Testing | Scanalyzed Exp. Cooling System | -3/Testing | Scanalyzed Adv. Transmission Jammer | -3/Testing | Hacked Jamming Amplifier | -3/Testing | Hacked Diametric Drive | -3/Testing | Scanalyzed Nanoactuators | -3/Testing | Scanalyzed Adv. Force Booster | -2/Research | Hacked Exp. Phase Shifter | -2/Research | Hacked Mni. Fusion Reactor | -2/Research | Scanalyzed Exp. Melee Analysis Suite | -2/Quarantine | Scanalyzed Cmb. Linear Gravjet | -2/Quarantine | Hacked Robot Schematics ------------------ None Fabricated ------------ Exp. Utility Shielding | x1 | -2/Research | Authchip Adv. Transmission Jammer | x2 | -2/Research | Authchip Exp. Phase Shifter | x1 | -2/Research | Authchip Repaired ---------- Exp. Sensor Array | 62% | -7/Storage | Broken Adv. Reaction Control System | 2% | -3/Testing Mic. Antimatter Reactor | 8% | -3/Testing Mic. Fission Core | 48% | -3/Testing Mic. Fission Core | 15% | -3/Testing Nanoactuators | 42% | -3/Testing Cld. Field Propulsion Drive | 65% | -3/Testing Exp. Utility Shielding | 31% | -2/Quarantine Diametric Drive | 16% | -2/Quarantine Studied --------- Arm. Wheel | -9/Materials | Hacked Autogun | -8/Materials | Hacked Impulse Thruster Array | -4/Factory | Hacked Nuclear Pulse Array | -4/Factory | Hacked Mic. Antimatter Reactor | -2/Research | Hacked Mic. Fission Core | -2/Research | Hacked Alien Tech Used ----------------- Core Expander Achievements -------------- None Challenges ------------ None Game ------ Seed HeartLatentChip Manual? 0 Play Time 08:45:30 Cumulative 810.1 hours Start 2026.08.01 @ 17:39:09 End 2026.08.02 @ 10:17:16 Sessions 9 Manual Loads 0 Difficulty Rogue Special Mode None Game No. 295 Rogue 291 Adventurer 4 Explorer 0 Win Type - Total 22 Types 9/2/7/0/0/0/2/2/0/0 Lore% 90 Gallery% 79 Achievement% 64 Wizard Run 0 Options --------- Layout 1 ASCII 0 Keyboard 0 Movement Numpad Keybinds 0 Fullscreen 1 Font 40/SmallcapsGlow Map View 50x40 Zoom Use 0% Tactical HUD 1 Map Filters NONE Filters NONE Steam 1 RUN: 67b1767e-e9ae-4377-9de8-0ed200c14c71